bitfinex/quotes_SOLUSD_20250802
["timestamp","ask_amount","ask_price","bid_price","bid_amount"]
[1754122183731,0.03,164.88,164.87,52.14615934]
[1754122184659,0.03,164.88,164.87,48.42385234]
[1754122185236,0.03,164.88,164.87,47.72385234]
[1754122185942,0.03,164.88,164.87,48.42385234]
[1754122188959,0.03,164.88,164.87,47.72385234]
[1754122189141,0.7,164.88,164.87,42.4]
[1754122189470,0.7,164.88,164.86,5.32385234]
[1754122189966,0.7,164.88,164.86,5.38385234]
[1754122190164,0.7,164.88,164.86,0.06]
[1754122190351,0.7,164.88,164.86,5.38385234]
[1754122190851,0.03,164.88,164.86,5.38385234]
[1754122191169,0.67,164.87,164.86,0.06]
[1754122192049,5.99385234,164.87,164.86,0.06]
[1754122193462,0.67,164.87,164.86,0.06]
[1754122196576,43.07,164.87,164.86,0.06]
[1754122200044,48.39385234,164.87,164.86,0.06]
[1754122200447,52.47326377,164.87,164.86,0.06]
[1754122205572,69.25794774,164.87,164.86,0.06]
[1754122205877,75.32333258,164.87,164.86,0.06]
[1754122209978,75.32333258,164.87,164.82,0.06]
[1754122209979,145.98,164.84,164.82,0.06]
[1754122210174,47.72385234,164.83,164.82,0.06]
[1754122216096,48.39385234,164.83,164.82,0.06]
[1754122216890,47.72385234,164.83,164.82,0.06]
[1754122217260,42.4,164.83,164.82,0.06]
[1754122217465,47.72385234,164.83,164.82,0.06]
[1754122218307,47.72385234,164.83,164.82,0.76]
[1754122219690,42.4,164.83,164.82,0.76]
[1754122219896,47.72385234,164.83,164.82,0.76]
[1754122220198,42.4,164.83,164.82,0.06]
[1754122220394,47.72385234,164.83,164.82,0.06]
[1754122223317,47.72385234,164.83,164.82,0.76]
[1754122223677,47.72385234,164.83,164.82,0.06]
[1754122224389,47.72385234,164.83,164.82,0.76]
[1754122224879,45.80004105,164.83,164.82,0.76]
[1754122225785,45.80004105,164.83,164.82,0.06]
[1754122227402,22.88009896,164.87,164.82,4.16004105]
[1754122227403,0.03,164.87,164.82,4.16004105]
[1754122227605,42.4,164.86,164.83,0.7]
[1754122227901,45.80004105,164.86,164.83,0.7]
[1754122228907,47.71017985,164.86,164.83,0.7]
[1754122230108,42.4,164.86,164.83,0.7]
[1754122230277,68.43,164.87,164.83,6.01017985]
[1754122230478,68.43,164.87,164.83,5.31017985]
[1754122230708,68.43,164.87,164.84,0.7]
[1754122231298,4.08087349,164.86,164.84,0.7]
[1754122231618,68.43,164.87,164.84,0.7]
[1754122232274,146.1,164.86,164.84,6.01017985]
[1754122232480,146.1,164.86,164.85,0.68]
[1754122232681,146.1,164.86,164.85,5.99017985]
[1754122238634,0.03,164.87,164.85,5.99017985]
[1754122238931,0.03,164.88,164.86,43.08]
[1754122239115,3.76230757,164.89,164.87,5.31017985]
[1754122239417,3.76230757,164.89,164.88,5.99017985]
[1754122242596,3.76230757,164.89,164.88,11.3003597]
[1754122243606,3.76230757,164.89,164.88,15.0626677]
[1754122244502,3.76230757,164.89,164.88,11.3003597]
[1754122244693,3.76230757,164.89,164.88,41.0626677]
[1754122244998,3.76230757,164.89,164.88,37.3003597]
[1754122245413,3.76230757,164.89,164.88,41.0626677]
[1754122248226,3.76230757,164.89,164.88,83.4426677]
[1754122252005,3.76230757,164.89,164.88,78.13248785]
[1754122253616,3.76230757,164.89,164.88,83.4426677]
[1754122254139,3.76230757,164.89,164.88,100.22735167]
[1754122256440,3.76230757,164.89,164.88,100.28735167]
[1754122262852,3.76230757,164.89,164.88,106.63729367]
[1754122263426,0.03,164.9,164.89,16.78468397]
[1754122263660,0.03,164.9,164.89,17.48468397]
[1754122263866,0.03,164.9,164.89,42.36]
[1754122264023,0.71,164.9,164.88,3.822308]
[1754122264224,0.71,164.9,164.88,0.06]
[1754122267154,0.68,164.89,164.88,0.06]
[1754122267932,0.71,164.9,164.88,0.06]
[1754122268444,0.71,164.9,164.88,5.36709251]
[1754122268640,0.03,164.9,164.88,0.06]
[1754122268825,0.71,164.9,164.88,0.06]
[1754122269025,0.68,164.89,164.88,0.06]
[1754122269226,5.98709251,164.89,164.88,0.06]
[1754122270045,146.78,164.89,164.88,0.06]
[1754122271332,152.08709251,164.89,164.88,0.06]
[1754122272028,156.16655643,164.89,164.88,0.06]
[1754122277544,182.16655643,164.89,164.88,0.06]
[1754122277868,36.06655643,164.89,164.88,0.06]
[1754122278076,30.07946392,164.89,164.88,0.76]
[1754122278278,42.55,164.9,164.88,0.76]
[1754122278448,42.55,164.9,164.88,0.06]
[1754122278449,47.85709251,164.9,164.88,0.06]
[1754122278863,42.55,164.9,164.88,0.06]
[1754122279269,4.76351024,164.89,164.88,0.06]
[1754122280262,4.08351024,164.89,164.88,0.06]
[1754122281059,4.08351024,164.89,164.88,0.76]
[1754122281287,42.55,164.9,164.88,0.76]
[1754122281978,42.55,164.9,164.88,0.06]
[1754122282187,42.55,164.9,164.88,0.76]
[1754122282859,42.55,164.9,164.88,0.06]
[1754122283200,0.68,164.89,164.88,0.06]
[1754122283364,10.0713455,164.89,164.88,0.06]
[1754122286975,9.3913455,164.89,164.88,0.06]
[1754122289913,10.0713455,164.89,164.88,0.06]
[1754122290300,4.76425299,164.89,164.88,0.06]
[1754122290496,10.0713455,164.89,164.88,0.06]
[1754122290698,9.3913455,164.89,164.88,0.06]
[1754122291201,10.0413455,164.89,164.88,0.06]
[1754122293091,9.3913455,164.89,164.88,0.06]
[1754122294006,4.08425299,164.89,164.88,0.06]
[1754122294188,9.3913455,164.89,164.88,0.06]
[1754122295891,4.08425299,164.89,164.88,0.72]
[1754122297500,4.08425299,164.89,164.88,0.06]
[1754122297501,9.3913455,164.89,164.88,0.06]
[1754122297687,10.0413455,164.89,164.88,0.06]
[1754122298900,10.0713455,164.89,164.88,0.06]
[1754122299681,9.4213455,164.89,164.88,0.06]
[1754122300079,10.0713455,164.89,164.88,0.06]
[1754122300397,26.85602947,164.89,164.88,0.06]
[1754122300603,26.85819782,164.89,164.88,0.06]
[1754122302500,10.07351385,164.89,164.88,0.06]
[1754122302813,9.42351385,164.89,164.88,0.06]
[1754122303012,10.07351385,164.89,164.88,0.06]
[1754122304238,38.22993949,164.89,164.88,0.06]
[1754122304913,43.33796617,164.89,164.88,0.06]
[1754122305694,26.0,164.86,164.82,0.06]
[1754122305897,5.30709251,164.83,164.82,0.06]
[1754122306188,73.82709251,164.83,164.82,0.06]
[1754122306413,78.56351385,164.83,164.82,0.06]
[1754122306791,69.34819782,164.83,164.82,0.06]
[1754122307697,46.68642134,164.83,164.82,0.06]
[1754122307989,51.99351385,164.83,164.82,0.06]
[1754122308194,69.42819782,164.83,164.82,0.06]
[1754122310720,75.49505458,164.83,164.82,0.06]
[1754122311623,42.78468397,164.81,164.8,0.06]
[1754122311823,94.75819782,164.81,164.8,0.06]
[1754122312131,95.40819782,164.81,164.8,0.06]
[1754122312307,94.75819782,164.81,164.8,0.06]
[1754122313523,97.86124364,164.81,164.8,0.06]
[1754122315026,98.51124364,164.81,164.8,0.06]
[1754122315333,103.81833615,164.81,164.8,0.06]
[1754122316908,97.86124364,164.81,164.8,0.06]
[1754122319253,146.04,164.79,164.78,0.66]
[1754122319413,51.99351385,164.79,164.78,0.66]
[1754122319727,51.99351385,164.79,164.77,0.66]
[1754122319932,5.30709251,164.78,164.77,0.66]
[1754122321003,31.30709251,164.78,164.77,0.66]
[1754122322136,26.0,164.78,164.77,0.66]
[1754122322349,146.1,164.78,164.77,5.96709251]
[1754122322639,146.1,164.78,164.77,0.66]
[1754122323020,151.40709251,164.78,164.77,0.66]
[1754122323622,194.00709251,164.78,164.77,0.66]
[1754122325526,220.00709251,164.78,164.75,0.77]
[1754122325852,5.30709251,164.76,164.75,0.06]
[1754122326029,47.88709251,164.76,164.75,0.06]
[1754122326425,47.88709251,164.76,164.75,0.77]
[1754122326954,42.58,164.76,164.75,0.77]
[1754122328018,188.68,164.77,164.75,0.77]
[1754122328829,146.1,164.77,164.75,6.07709251]
[1754122329233,146.1,164.77,164.76,6.01709251]
[1754122331834,146.1,164.77,164.76,0.71]
[1754122332637,146.1,164.77,164.76,6.01709251]
[1754122333652,146.1,164.77,164.76,0.71]
[1754122340770,146.1,164.77,164.76,6.01709251]
[1754122346753,42.55,164.82,164.76,6.01709251]
[1754122346956,42.55,164.82,164.8,5.30709251]
[1754122347145,0.03,164.82,164.81,6.01709251]
[1754122347476,4.11525684,164.82,164.81,6.01709251]
[1754122347784,0.03,164.82,164.81,6.01709251]
[1754122348346,4.11797593,164.82,164.81,5.30709251]
[1754122349295,0.03,164.82,164.81,5.30709251]
[1754122349844,0.74,164.82,164.8,5.30709251]
[1754122350450,4.82986169,164.82,164.8,5.30709251]
[1754122350646,0.67,164.81,164.76,0.67]
[1754122350883,0.67,164.81,164.78,5.30709251]
[1754122351092,0.67,164.81,164.79,5.30709251]
[1754122351747,0.67,164.81,164.78,5.30709251]
[1754122351951,0.67,164.81,164.78,5.97709251]
[1754122352174,43.18,164.82,164.78,5.97709251]
[1754122352764,43.18,164.82,164.78,0.67]
[1754122352969,42.51,164.82,164.79,5.97709251]
[1754122353174,0.03,164.82,164.8,5.97709251]
[1754122353377,4.11936098,164.82,164.8,5.97709251]
[1754122353595,4.11936098,164.82,164.81,5.97709251]
[1754122354886,0.03,164.82,164.81,5.97709251]
[1754122356491,0.03,164.82,164.81,0.67]
[1754122356662,0.03,164.82,164.81,5.30709251]
[1754122357772,0.7,164.82,164.8,5.30709251]
[1754122358266,4.78641013,164.82,164.8,5.30709251]
[1754122358467,0.03,164.82,164.8,5.30709251]
[1754122358796,0.03,164.82,164.81,5.30709251]
[1754122364313,47.22616233,164.82,164.79,0.06]
[1754122364494,0.67,164.81,164.79,5.36709251]
[1754122365184,42.47,164.82,164.79,5.36709251]
[1754122365380,43.14,164.82,164.79,5.36709251]
[1754122365615,146.77,164.81,164.79,0.06]
[1754122365780,47.74709251,164.8,164.79,0.06]
[1754122365984,52.5042587,164.8,164.79,0.06]
[1754122366203,47.19716619,164.8,164.79,0.06]
[1754122368212,46.52716619,164.8,164.79,0.06]
[1754122368394,46.52716619,164.8,164.79,0.73]
[1754122369312,4.08716619,164.8,164.79,0.06]
[1754122369697,4.24716619,164.8,164.79,0.06]
[1754122369884,4.08716619,164.8,164.79,0.06]
[1754122371216,4.24716619,164.8,164.79,0.06]
[1754122371783,4.08716619,164.8,164.79,0.06]
[1754122372291,10.0642587,164.8,164.79,0.06]
[1754122372709,4.75716619,164.8,164.79,0.06]
[1754122373011,10.0642587,164.8,164.79,0.06]
[1754122375003,9.3942587,164.8,164.79,0.06]
[1754122377522,10.0642587,164.8,164.79,0.06]
[1754122378614,9.3942587,164.8,164.79,0.06]
[1754122379340,10.0642587,164.8,164.79,0.06]
[1754122381801,4.75716619,164.8,164.79,0.06]
[1754122382013,10.0642587,164.8,164.79,0.06]
[1754122382205,9.3942587,164.8,164.79,0.06]
[1754122382591,72.52716619,164.8,164.79,0.74]
[1754122383407,46.52716619,164.8,164.79,0.74]
[1754122385306,4.08716619,164.8,164.79,0.74]
[1754122385500,4.08716619,164.8,164.79,6.04709251]
[1754122385901,0.03,164.8,164.79,6.04709251]
[1754122389806,0.03,164.8,164.79,0.06]
[1754122390517,4.1221448,164.8,164.79,0.06]
[1754122394201,9.42923731,164.8,164.79,0.06]
[1754122394395,10.13923731,164.8,164.79,0.06]
[1754122395323,36.13923731,164.8,164.79,0.06]
[1754122395624,41.44632982,164.8,164.79,0.06]
[1754122396397,36.13923731,164.8,164.79,0.06]
[1754122398530,35.42923731,164.8,164.79,0.06]
[1754122398730,36.13923731,164.8,164.79,0.06]
[1754122399312,52.92392128,164.8,164.79,0.06]
[1754122399632,26.92392128,164.8,164.79,0.06]
[1754122400117,32.03194796,164.8,164.79,0.06]
[1754122402035,26.0,164.78,164.77,0.06]
[1754122402223,99.7375364,164.78,164.77,0.06]
[1754122402424,100.4475364,164.78,164.77,0.06]
[1754122403925,106.51623405,164.78,164.77,0.06]
[1754122404132,16.78468397,164.77,164.75,0.06]
[1754122404367,56.95109821,164.76,164.75,0.06]
[1754122404844,57.66109821,164.76,164.75,0.06]
[1754122405425,56.95109821,164.76,164.75,0.06]
[1754122406359,74.44578218,164.76,164.75,0.06]
[1754122406566,75.4033556,164.76,164.75,0.06]
[1754122406865,77.8374086,164.76,164.75,0.06]
[1754122407248,229.04331852,164.76,164.75,0.06]
[1754122408142,82.94331852,164.76,164.75,0.06]
[1754122409259,77.8374086,164.76,164.75,0.06]
[1754122410165,68.62392128,164.76,164.75,0.74]
[1754122410757,94.62392128,164.76,164.75,0.74]
[1754122411358,77.83923731,164.76,164.75,0.74]
[1754122415677,77.83923731,164.76,164.75,0.06]
[1754122416278,72.5321448,164.76,164.75,0.06]
[1754122416639,77.83923731,164.76,164.75,0.77]
[1754122417372,72.5321448,164.76,164.75,0.77]
[1754122417735,68.44,164.76,164.75,0.77]
[1754122418758,42.44,164.76,164.75,0.77]
[1754122418970,0.03,164.8,164.75,6.07709251]
[1754122419154,42.44,164.79,164.76,5.30709251]
[1754122419464,4.07842203,164.78,164.77,0.71]
[1754122419640,42.44,164.79,164.77,6.01709251]
[1754122420047,42.44,164.79,164.78,0.71]
[1754122422174,42.44,164.79,164.78,6.01709251]
[1754122423847,146.13,164.8,164.78,6.01709251]
[1754122424067,146.13,164.8,164.79,5.30709251]
[1754122424262,146.13,164.8,164.79,0.71]
[1754122424463,146.13,164.8,164.79,6.01709251]
[1754122424671,0.03,164.8,164.79,6.01709251]
[1754122427769,0.03,164.8,164.79,11.32418502]
[1754122428649,0.03,164.8,164.79,6.01709251]
[1754122432789,0.03,164.8,164.79,11.32418502]
[1754122436088,0.03,164.8,164.79,28.10886899]
[1754122438091,0.03,164.8,164.79,6.01709251]
[1754122438266,0.03,164.8,164.79,0.71]
[1754122438472,0.03,164.8,164.79,5.30709251]
[1754122442088,0.03,164.8,164.79,5.97709251]
[1754122442290,0.03,164.8,164.79,11.28418502]
[1754122442986,0.03,164.8,164.79,5.97709251]
[1754122445585,0.03,164.8,164.79,31.97709251]
[1754122446305,0.03,164.8,164.79,37.28418502]
[1754122446923,0.03,164.8,164.79,11.28418502]
[1754122448093,0.03,164.8,164.79,37.28418502]
[1754122448298,0.03,164.8,164.79,11.28418502]
[1754122449294,0.03,164.8,164.79,31.97709251]
[1754122451104,0.03,164.8,164.79,5.30709251]
[1754122451609,0.03,164.8,164.77,0.67]
[1754122451781,0.03,164.8,164.79,5.30709251]
[1754122453797,0.73,164.8,164.79,5.30709251]
[1754122455413,0.73,164.8,164.78,5.30709251]
[1754122455587,0.73,164.8,164.77,5.30709251]
[1754122456111,0.7,164.79,164.77,5.30709251]
[1754122456783,0.03,164.8,164.78,5.30709251]
[1754122457088,0.03,164.8,164.79,5.30709251]
[1754122458090,0.03,164.8,164.79,5.97709251]
[1754122459301,0.03,164.8,164.79,5.30709251]
[1754122461722,0.03,164.8,164.78,0.67]
[1754122461890,0.03,164.8,164.79,5.30709251]
[1754122462214,0.03,164.8,164.79,5.97709251]
[1754122462707,0.03,164.8,164.79,0.67]
[1754122462918,0.03,164.8,164.79,5.97709251]
[1754122469111,0.03,164.8,164.79,5.30709251]
[1754122469606,0.03,164.8,164.79,5.97709251]
[1754122475850,0.75,164.8,164.77,0.06]
[1754122476048,0.75,164.8,164.79,5.30709251]
[1754122476431,0.03,164.8,164.79,5.30709251]
[1754122479547,0.03,164.8,164.78,5.30709251]
[1754122479548,0.75,164.8,164.78,5.30709251]
[1754122479755,4.83967583,164.8,164.78,5.30709251]
[1754122479935,0.75,164.8,164.78,5.30709251]
[1754122480118,4.83967583,164.8,164.78,5.30709251]
[1754122480322,0.75,164.8,164.78,5.30709251]
[1754122480541,4.83967583,164.8,164.78,5.30709251]
[1754122480756,0.75,164.8,164.78,5.30709251]
[1754122480936,4.83967583,164.8,164.78,5.30709251]
[1754122481134,0.03,164.8,164.78,0.69]
[1754122481339,4.11967583,164.8,164.79,5.30709251]
[1754122481541,0.03,164.8,164.79,5.30709251]
[1754122481743,4.11967583,164.8,164.79,5.30709251]
[1754122481952,0.03,164.8,164.79,5.30709251]
[1754122482148,4.11967583,164.8,164.79,5.30709251]
[1754122482327,0.03,164.8,164.79,5.30709251]
[1754122482532,4.11967583,164.8,164.78,0.69]
[1754122482746,0.03,164.8,164.79,5.30709251]
[1754122483060,4.11967583,164.8,164.79,5.30709251]
[1754122483260,0.03,164.8,164.79,5.30709251]
[1754122483565,4.11967583,164.8,164.77,0.06]
[1754122483762,4.11967583,164.8,164.78,5.30709251]
[1754122484757,0.03,164.8,164.78,0.30709251]
[1754122485257,4.12608187,164.8,164.78,0.30709251]
[1754122485469,4.12608187,164.8,164.77,0.75]
[1754122485668,146.1,164.79,164.77,0.06]
[1754122485829,146.1,164.78,164.77,0.06]
[1754122486027,10.12355119,164.78,164.77,0.06]
[1754122486240,6.02709251,164.78,164.77,0.06]
[1754122486934,4.09645868,164.78,164.77,0.06]
[1754122487530,4.81645868,164.78,164.77,0.06]
[1754122488354,0.72,164.78,164.77,0.06]
[1754122488755,188.5,164.79,164.77,0.06]
[1754122488942,189.22,164.79,164.77,0.06]
[1754122490270,0.72,164.78,164.77,0.06]
[1754122492061,188.5,164.79,164.77,0.06]
[1754122492432,189.22,164.79,164.77,0.06]
[1754122492642,188.5,164.79,164.77,0.06]
[1754122492984,189.22,164.79,164.77,0.06]
[1754122493164,188.5,164.79,164.77,0.06]
[1754122494549,189.22,164.79,164.77,0.06]
[1754122497770,188.5,164.79,164.77,0.75]
[1754122498275,0.72,164.78,164.77,0.06]
[1754122498971,193.80709251,164.79,164.77,0.06]
[1754122499342,194.52709251,164.79,164.77,0.06]
[1754122500072,189.22,164.79,164.77,0.06]
[1754122500264,194.52709251,164.79,164.77,0.06]
[1754122500463,188.5,164.79,164.77,0.06]
[1754122501375,146.1,164.79,164.78,5.98709251]
[1754122501970,42.43,164.8,164.78,5.98709251]
[1754122502562,42.43,164.8,164.78,5.30709251]
[1754122503175,43.12,164.8,164.77,5.36709251]
[1754122503875,43.12,164.8,164.77,0.06]
[1754122505546,43.12,164.8,164.77,5.36709251]
[1754122505954,42.43,164.8,164.78,0.68]
[1754122506169,43.12,164.8,164.77,5.36709251]
[1754122506685,42.43,164.8,164.77,6.04709251]
[1754122507579,43.12,164.8,164.77,6.04709251]
[1754122508781,42.43,164.8,164.77,6.04709251]
[1754122510053,43.12,164.8,164.77,6.04709251]
[1754122510279,43.12,164.8,164.77,5.36709251]
[1754122511095,43.12,164.8,164.77,6.04709251]
[1754122512191,43.12,164.8,164.77,5.36709251]
[1754122512973,43.12,164.8,164.77,6.04709251]
[1754122514514,4.09160356,164.79,164.77,6.04709251]
[1754122514686,4.09160356,164.79,164.77,0.06]
[1754122514877,4.78160356,164.79,164.77,0.06]
[1754122515491,4.09160356,164.79,164.77,0.06]
[1754122517190,4.09160356,164.79,164.77,6.04709251]
[1754122518488,42.43,164.8,164.77,6.04709251]
[1754122519309,4.09473035,164.79,164.77,6.04709251]
[1754122522407,4.78473035,164.79,164.77,5.36709251]
[1754122522807,4.09473035,164.79,164.77,5.36709251]
[1754122523284,4.09473035,164.78,164.77,0.74]
[1754122523612,4.09473035,164.79,164.77,6.04709251]
[1754122523914,4.09473035,164.78,164.77,6.04709251]
[1754122524088,4.09473035,164.79,164.77,6.04709251]
[1754122524412,4.09473035,164.78,164.77,0.06]
[1754122524711,4.09473035,164.79,164.77,0.06]
[1754122524913,4.09473035,164.78,164.77,0.06]
[1754122525210,4.09473035,164.79,164.77,0.06]
[1754122525407,4.09473035,164.78,164.77,0.06]
[1754122525710,4.09473035,164.79,164.77,0.06]
[1754122525915,4.09473035,164.78,164.77,0.06]
[1754122526209,4.09473035,164.79,164.77,0.06]
[1754122526412,4.09473035,164.78,164.77,0.74]
[1754122526616,4.09473035,164.79,164.77,0.74]
[1754122526789,4.09473035,164.78,164.77,0.74]
[1754122526993,4.09473035,164.79,164.77,4.1407096]
[1754122527193,4.09473035,164.78,164.77,4.1407096]
[1754122528605,4.09473035,164.79,164.77,4.1407096]
[1754122528787,4.09473035,164.78,164.77,4.1407096]
[1754122529111,4.09473035,164.79,164.77,4.1407096]
[1754122529315,4.09473035,164.78,164.77,4.1407096]
[1754122529535,188.53,164.8,164.77,4.1407096]
[1754122529536,4.09473035,164.79,164.77,4.1407096]
[1754122529713,4.09473035,164.78,164.77,4.1407096]
[1754122529888,4.09473035,164.79,164.77,4.1407096]
[1754122530216,4.09473035,164.78,164.77,4.1407096]
[1754122535024,4.09473035,164.78,164.77,3.4607096]
[1754122537128,4.09473035,164.78,164.77,4.1507096]
[1754122540329,4.09473035,164.78,164.77,0.06]
[1754122540512,4.76473035,164.78,164.77,0.06]
[1754122540708,47.14473035,164.78,164.77,0.06]
[1754122541209,50.54543995,164.78,164.77,0.06]
[1754122541911,93.33012392,164.78,164.77,0.06]
[1754122542302,98.45022626,164.78,164.77,0.06]
[1754122542507,104.51892391,164.78,164.77,0.06]
[1754122542939,98.45022626,164.78,164.77,0.06]
[1754122544137,72.47473035,164.78,164.77,0.06]
[1754122545021,46.47473035,164.78,164.77,0.75]
[1754122546334,46.47473035,164.78,164.77,4.1507096]
[1754122546511,4.09473035,164.78,164.77,4.1507096]
[1754122546922,4.09473035,164.78,164.77,6.06209031]
[1754122547328,4.12473035,164.79,164.77,6.06209031]
[1754122547640,0.03,164.79,164.78,6.00209031]
[1754122548917,0.03,164.8,164.78,37.31418062]
[1754122549118,0.03,164.8,164.79,11.31418062]
[1754122550141,0.03,164.8,164.79,6.00209031]
[1754122550440,0.03,164.8,164.79,5.31209031]
[1754122550611,0.03,164.8,164.79,6.00209031]
[1754122551636,0.03,164.81,164.79,6.00209031]
[1754122551807,41.97,164.82,164.81,5.31209031]
[1754122552012,46.06190858,164.82,164.81,6.00209031]
[1754122552232,0.03,164.84,164.81,6.00209031]
[1754122552417,0.03,164.84,164.83,5.31209031]
[1754122552817,0.03,164.84,164.83,6.00209031]
[1754122560744,0.03,164.84,164.83,6.00209031]
[1754122568443,0.03,164.86,164.83,6.00209031]
[1754122568652,0.03,164.86,164.85,5.31209031]
[1754122569127,0.03,164.86,164.85,5.98209031]
[1754122580687,0.03,164.88,164.87,36.62418062]
[1754122580890,0.1,164.96,164.87,96.35540307]
[1754122581182,0.1,164.96,164.95,5.31209031]
[1754122581355,0.8,164.96,164.95,5.31209031]
[1754122582066,0.1,164.96,164.95,5.31209031]
[1754122583483,0.1,164.96,164.95,5.98209031]
[1754122585649,0.1,164.96,164.95,11.29418062]
[1754122591087,0.1,164.96,164.95,15.35442762]
[1754122592398,0.81,165.03,164.95,15.35442762]
[1754122592581,0.81,165.03,165.02,5.31209031]
[1754122596178,0.81,165.03,164.98,26.71]
[1754122596368,0.1,165.03,164.98,26.71]
[1754122596570,0.1,165.03,165.0,5.31209031]
[1754122596975,0.1,165.03,165.01,5.31209031]
[1754122597168,0.1,165.03,165.02,5.31209031]
[1754122599900,0.1,165.03,165.01,5.31209031]
[1754122601006,0.1,165.03,165.0,5.31209031]
[1754122601176,4.15972268,165.03,164.97,0.71]
[1754122601377,4.15972268,165.03,164.99,5.31209031]
[1754122602377,9.47181299,165.03,164.99,5.31209031]
[1754122603508,4.15972268,165.03,164.99,5.31209031]
[1754122604119,4.15972268,165.03,165.0,5.31209031]
[1754122605981,46.47972268,165.03,165.0,5.31209031]
[1754122606188,146.1,165.02,164.99,0.71]
[1754122606405,146.1,165.02,164.99,5.31209031]
[1754122607084,146.33,165.02,164.99,5.31209031]
[1754122608812,146.33,165.02,164.98,5.31209031]
[1754122608994,0.23,165.01,164.98,5.31209031]
[1754122610211,42.55,165.0,164.96,5.31209031]
[1754122611414,42.55,165.0,164.96,6.02209031]
[1754122612518,42.32,164.99,164.96,6.02209031]
[1754122613427,42.32,164.99,164.97,5.31209031]
[1754122613617,42.32,164.99,164.97,6.02209031]
[1754122614326,42.32,164.99,164.96,5.31209031]
[1754122614513,42.32,164.99,164.95,0.71]
[1754122614701,47.63209031,164.99,164.95,5.31209031]
[1754122614900,0.23,164.98,164.94,6.02209031]
[1754122615103,9.60998965,164.98,164.94,6.02209031]
[1754122618004,9.37998965,164.98,164.94,5.31209031]
[1754122618206,0.23,164.97,164.93,6.02209031]
[1754122618413,42.32,164.96,164.92,6.02209031]
[1754122620205,42.32,164.96,164.88,18.226556]
[1754122620206,47.63209031,164.96,164.88,18.226556]
[1754122620443,150.40498358,164.95,164.91,5.31209031]
[1754122620728,146.33,164.95,164.91,5.99209031]
[1754122622331,9.61968612,164.94,164.9,5.31209031]
[1754122622501,4.30759581,164.94,164.9,5.99209031]
[1754122622700,42.32,164.93,164.92,0.06]
[1754122623304,42.32,164.93,164.92,0.74]
[1754122623856,42.32,164.94,164.92,6.05209031]
[1754122624028,146.1,164.95,164.93,5.99209031]
[1754122624220,146.1,164.95,164.94,5.99209031]
[1754122626922,42.32,164.96,164.94,5.99209031]
[1754122627123,42.32,164.96,164.95,0.68]
[1754122627330,46.40136439,164.96,164.95,5.99209031]
[1754122627622,4.08136439,164.96,164.95,5.99209031]
[1754122627820,4.08136439,164.97,164.95,5.99209031]
[1754122628044,4.08136439,164.97,164.96,5.99209031]
[1754122628845,4.08136439,164.97,164.96,0.68]
[1754122629827,4.08136439,164.97,164.95,5.99209031]
[1754122631636,4.08136439,164.97,164.95,5.31209031]
[1754122632649,4.08136439,164.97,164.94,5.99209031]
[1754122636160,4.08136439,164.97,164.95,0.68]
[1754122636661,4.08136439,164.97,164.94,5.99209031]
[1754122636865,4.08136439,164.97,164.95,0.68]
[1754122637852,4.08136439,164.97,164.95,5.99209031]
[1754122638442,4.08136439,164.97,164.96,0.68]
[1754122640262,4.08136439,164.97,164.95,5.31209031]
[1754122640462,4.08136439,164.97,164.95,5.99209031]
[1754122640668,4.08136439,164.97,164.95,0.68]